fUSD/lending_fUSD_20241116
["ID","MTS","AMOUNT","RATE_DAILY","PERIOD"]
[342333349,1731739832403,-500.0,9.999e-05,2]
[342333350,1731739832413,-4919.67,9.999e-05,2]
[342333351,1731739832423,-500.0,9.999e-05,2]
[342333352,1731739832432,-4919.67,9.999e-05,2]
[342333353,1731739832441,-4919.67,9.999e-05,2]
[342333354,1731739832450,-4919.67,9.999e-05,2]
[342333355,1731739832459,-4919.67,9.999e-05,2]
[342333356,1731739832468,-4919.67,9.999e-05,2]
[342333357,1731739832478,-4919.67,9.999e-05,2]
[342333358,1731739832486,-4919.67,9.999e-05,2]
[342333359,1731739832495,-4919.67,9.999e-05,2]
[342333360,1731739832504,-4919.67,9.999e-05,2]
[342333361,1731739832513,-4919.68792741,9.999e-05,2]
[342333362,1731739832522,-500.0,9.999e-05,2]
[342333363,1731739832531,-409.64785328,9.999e-05,2]
[342333364,1731739832540,-500.0,9.999e-05,2]
[342333365,1731739832549,-500.0,9.999e-05,2]
[342333366,1731739832558,-500.0,9.999e-05,2]
[342333367,1731739832567,-175.46,9.999e-05,2]
[342333368,1731739832575,-516.55,9.999e-05,2]
[342333369,1731739832584,-516.55,9.999e-05,2]
[342333370,1731739832594,-516.55,9.999e-05,2]
[342333371,1731739832603,-516.55,9.999e-05,2]
[342333372,1731739832612,-516.55,9.999e-05,2]
[342333373,1731739832622,-516.55,9.999e-05,2]
[342333374,1731739832631,-516.55,9.999e-05,2]
[342333375,1731739832639,-516.55,9.999e-05,2]
[342333376,1731739832650,-516.55,9.999e-05,2]
[342333377,1731739832659,-516.55,9.999e-05,2]
[342333378,1731739832668,-516.55,9.999e-05,2]
[342333379,1731739832678,-516.55,9.999e-05,2]
[342333380,1731739832687,-516.55,9.999e-05,2]
[342333381,1731739832697,-516.55,9.999e-05,2]
[342333382,1731739832706,-516.55,9.999e-05,2]
[342333383,1731739832715,-516.55,9.999e-05,2]
[342333384,1731739832725,-516.55,9.999e-05,2]
[342333385,1731739832734,-516.55,9.999e-05,2]
[342333386,1731739832743,-516.55,9.999e-05,2]
[342333387,1731739832752,-516.55,9.999e-05,2]
[342333388,1731739832762,-516.55,9.999e-05,2]
[342333389,1731739832771,-516.55,9.999e-05,2]
[342333390,1731739832780,-516.55,9.999e-05,2]
[342333391,1731739832789,-516.6,9.999e-05,2]
[342333392,1731739832798,-500.0,9.999e-05,2]
[342333393,1731739832807,-500.0,9.999e-05,2]
[342333394,1731739832816,-500.0,9.999e-05,2]
[342333395,1731739832826,-280.68,9.999e-05,2]
[342333396,1731739832835,-500.0,9.999e-05,2]
[342333397,1731739832843,-500.0,9.999e-05,2]
[342333398,1731739832852,-500.0,9.999e-05,2]
[342333399,1731739832861,-500.0,9.999e-05,2]
[342333400,1731739832871,-500.0,9.999e-05,2]
[342333401,1731739832880,-276.3948682,9.999e-05,2]
[342333402,1731739832889,-2493.0,0.0001,2]
[342333403,1731739832899,-3803.12668239,0.0001,2]
[342333404,1731739832908,-195428.95752113,0.0001,2]
[342333405,1731739832917,-73659.71193611,0.0001,2]
[342333406,1731739832948,-61480.76495762,0.0001,2]
[342333407,1731739832959,-17202.08056441,0.0001,2]
[342333408,1731739837629,-503.598,0.0001,2]
[342333409,1731739837638,-542.92,0.0001,2]
[342333410,1731739837688,-6898.00696325,0.0001,2]
[342333411,1731739837700,-5835.78829024,0.0001,2]
[342333412,1731739837712,-3248.20449063,0.0001,2]
[342333413,1731739837723,-5845.0519612,0.0001,2]
[342333414,1731739837942,-2669.97869088,0.0001,2]
[342333415,1731739837955,-9701.61933,0.0001,2]
[342333416,1731739837977,-20169.33062394,0.0001,2]
[342333417,1731739837988,-1914.40556,0.0001,2]
[342333418,1731739838030,-12042.83732796,0.0001,2]
[342333419,1731739838042,-267.37363418,0.0001,2]
[342333423,1731739838233,-407.98848719,0.0001,2]
[342333424,1731739838244,-912.15,0.0001,2]
[342333425,1731739838255,-91845.55308223,0.0001,2]
[342333429,1731739839594,-3724.44,0.0001,2]
[342333430,1731739839605,-1539.78541943,0.0001,2]
[342333431,1731739839617,-2482.56322458,0.0001,2]
[342333432,1731739839628,-1203.548977,0.0001,2]
[342333433,1731739839639,-9163.02307383,0.0001,2]
[342333434,1731739839683,-13571.7606143,0.0001,2]
[342333435,1731739839769,-439.54000004,0.0001,2]
[342333436,1731739839780,-421.84499995,0.0001,2]
[342333437,1731739839791,-263.975,0.0001,2]
[342333438,1731739839844,-252.1058728,0.0001,2]
[342333439,1731739839856,-626.9,0.0001,2]
[342333447,1731739843031,-2410.0,0.0001,2]
[342333448,1731739843041,-1042.3489,0.0001,2]
[342333449,1731739843052,-30591.27883,0.0001,2]
[342333450,1731739843091,-1610.87918864,0.0001,2]
[342333451,1731739843103,-5259.85749327,0.0001,2]
[342333452,1731739843115,-6398.31063432,0.0001,2]
[342333453,1731739843126,-12918.21780947,0.0001,2]
[342333454,1731739843137,-5995.13671756,0.0001,2]
[342333455,1731739843148,-9195.04354462,0.0001,2]
[342333456,1731739843172,-4382.10747062,0.0001,2]
[342333457,1731739843184,-614.30023178,0.0001,2]
[342333465,1731739845808,-7556.90688443,0.0001,2]
[342333466,1731739845893,-412.4894205,0.0001,2]
[342333467,1731739845905,-16151.2212375,0.0001,2]
[342333469,1731739903846,1341.45,8.219e-05,2]
[342333470,1731740012865,150.0,0.000145,27]
[342333473,1731740441080,173.94,8.219e-05,2]
[342333474,1731740464293,242.16,0.00025,60]
[342333475,1731740597390,500.0,0.000249,120]
[342333476,1731740605275,2000.0,0.000249,120]
[342333477,1731740631128,200.0,0.000249,120]
[342333478,1731740695542,1274.37,8.219e-05,2]
[342333479,1731740729853,150.966,0.0001325,60]
[342333480,1731740730436,150.983,0.0001378,60]
[342333481,1731740731244,150.97,0.0001431,27]
[342333493,1731740943603,1000.0,0.00025,60]
[342333498,1731740980215,1000.0,0.00025,60]
[342333501,1731741001487,1000.0,0.00025,60]
[342333502,1731741011276,1000.0,0.00025,60]
[342333503,1731741021870,1000.0,0.00025,60]
[342333504,1731741031050,1000.0,0.00025,60]
[342333511,1731741031747,-450.0,9.021e-05,2]
[342333513,1731741031757,-609.05,9.028e-05,2]
[342333515,1731741031766,-250.0,9.116e-05,2]
[342333517,1731741031776,-200.0,9.167e-05,2]
[342333519,1731741031786,-250.0,9.178e-05,2]
[342333521,1731741031795,-160.0,9.256e-05,2]
[342333523,1731741031804,-1000.0,9.258e-05,2]
[342333525,1731741031813,-298.28,9.403e-05,2]
[342333527,1731741031821,-23900.0,9.428e-05,2]
[342333529,1731741031830,-500.0,9.5e-05,2]
[342333531,1731741031839,-500.0,9.5e-05,2]
[342333533,1731741031848,-521.6,9.5e-05,2]
[342333535,1731741031857,-516.18,9.5e-05,2]
[342333537,1731741031868,-6277.28,9.529e-05,2]
[342333539,1731741031877,-165.28,9.567e-05,2]
[342333541,1731741031886,-306.4,9.641e-05,2]
[342333543,1731741031894,-2775.85,9.67e-05,2]
[342333545,1731741031904,-4147.27,9.67e-05,2]
[342333547,1731741031912,-1935.53,9.778e-05,2]
[342333549,1731741031922,-150.0,9.898e-05,2]
[342333551,1731741031932,-169.28,9.898e-05,2]
[342333553,1731741031941,-580.4231,9.899e-05,2]
[342333555,1731741031950,-28702.7398,9.899e-05,2]
[342333557,1731741031960,-394.7564,9.899e-05,2]
[342333559,1731741031969,-675.1697,9.899e-05,2]
[342333561,1731741031978,-381.7642,9.9e-05,2]
[342333563,1731741031987,-198.5311,9.9e-05,2]
[342333565,1731741031997,-2046.8132,9.9e-05,2]
[342333567,1731741032006,-3317.114,9.9e-05,2]
[342333569,1731741032015,-225.32011535,9.9e-05,2]
[342333571,1731741032024,-1562.6,9.9e-05,2]
[342333573,1731741032033,-1000.0,9.9e-05,2]
[342333575,1731741032042,-403.0,9.9e-05,2]
[342333577,1731741032051,-629.884,9.902e-05,2]
[342333579,1731741032060,-174.45689328,9.999e-05,2]
[342333580,1731741032069,-45781.36945013,9.999e-05,2]
[342333581,1731741032079,-500.0,9.999e-05,2]
[342333582,1731741032088,-500.0,9.999e-05,2]
[342333583,1731741032097,-500.0,9.999e-05,2]
[342333584,1731741032107,-500.0,9.999e-05,2]
[342333585,1731741032118,-500.0,9.999e-05,2]
[342333586,1731741032127,-500.0,9.999e-05,2]
[342333587,1731741032136,-500.0,9.999e-05,2]
[342333588,1731741032145,-500.0,9.999e-05,2]
[342333589,1731741032154,-500.0,9.999e-05,2]
[342333590,1731741032163,-500.0,9.999e-05,2]
[342333591,1731741032172,-500.0,9.999e-05,2]
[342333592,1731741032181,-500.0,9.999e-05,2]
[342333593,1731741032190,-500.0,9.999e-05,2]
[342333594,1731741032199,-500.0,9.999e-05,2]
[342333595,1731741032208,-500.0,9.999e-05,2]
[342333596,1731741032217,-500.0,9.999e-05,2]
[342333597,1731741032226,-500.0,9.999e-05,2]
[342333598,1731741032235,-531.36606922,9.999e-05,2]
[342333599,1731741032244,-500.0,9.999e-05,2]
[342333600,1731741032254,-350.0,9.999e-05,2]
[342333601,1731741032263,-500.0,9.999e-05,2]
[342333602,1731741032272,-500.0,9.999e-05,2]
[342333603,1731741032281,-501.83327232,9.999e-05,2]
[342333604,1731741032290,-500.0,9.999e-05,2]
[342333605,1731741032299,-500.0,9.999e-05,2]
[342333606,1731741032309,-500.0,9.999e-05,2]
[342333607,1731741032318,-500.0,9.999e-05,2]
[342333608,1731741032328,-393.48995367,9.999e-05,2]
[342333609,1731741032337,-500.0,9.999e-05,2]
[342333610,1731741032348,-500.0,9.999e-05,2]
[342333611,1731741032357,-500.0,9.999e-05,2]
[342333612,1731741032368,-500.0,9.999e-05,2]
[342333613,1731741032377,-636.23951469,9.999e-05,2]
[342333614,1731741032386,-500.0,9.999e-05,2]
[342333615,1731741032395,-500.0,9.999e-05,2]
[342333616,1731741032404,-500.0,9.999e-05,2]
[342333617,1731741032414,-503.18035562,9.999e-05,2]
[342333618,1731741032424,-2166.0,0.0001,2]
[342333619,1731741032433,-3765.09541557,0.0001,2]
[342333620,1731741032443,-21261.71173039,0.0001,2]
[342333621,1731741032460,-21600.00001348,0.0001,2]
[342333622,1731741032479,-2972.3775995,0.0001,2]
[342333623,1731741032490,-1049.48765401,0.0001,2]
[342333624,1731741032501,-38225.04115789,0.0001,2]
[342333626,1731741037792,-822.49017547,0.0001,2]
[342333628,1731741038001,-15320.021922,0.0001,2]
[342333629,1731741038013,-16913.349525,0.0001,2]
[342333630,1731741038026,-795.39,0.0001,2]
[342333631,1731741038037,-1042.8357821,0.0001,2]
[342333632,1731741038050,-502.5,0.0001,2]
[342333633,1731741038060,-3068.11409622,0.0001,2]
[342333634,1731741038071,-1887.13760928,0.0001,2]
[342333635,1731741038082,-1106.18950605,0.0001,2]
[342333636,1731741038287,-66912.31103685,0.0001,2]
[342333637,1731741038297,-7256.28497617,0.0001,2]
[342333647,1731741039757,-492.03,0.0001,2]
[342333648,1731741039836,-3878.08796448,0.0001,2]
[342333649,1731741039849,-779.83,0.0001,2]
[342333650,1731741039860,-3420.68354689,0.0001,2]
[342333651,1731741039873,-342.48834251,0.0001,2]
[342333652,1731741042851,-1851.0,0.0001,2]
[342333653,1731741042861,-235990.85352226,0.0001,2]
[342333654,1731741042975,-4476.72387459,0.0001,2]
[342333655,1731741043053,-835.19845455,0.0001,2]
[342333666,1731741045842,-8981.6,0.0001,2]
[342333667,1731741045855,-2180.71618016,0.0001,2]
[342333668,1731741045866,-257128.85925149,0.0001,2]
[342333669,1731741045921,-391.92818951,0.0001,2]
[342333670,1731741046002,-6441.59999997,0.0001,2]
[342333671,1731741046072,-1980.0,0.0001,2]
[342333672,1731741046084,-2923.88896204,0.0001,2]
[342333678,1731741048221,1000.0,0.00025,60]
[342333679,1731741061193,1000.0,0.00025,60]
[342333681,1731741075393,1000.0,0.00025,60]
[342333682,1731741095062,1000.0,0.00025,60]
[342333683,1731741104851,1000.0,0.00025,60]
[342333684,1731741116632,1000.0,0.00025,60]
[342333685,1731741193507,220.0,0.00025,60]
[342333686,1731741195553,500.0,0.00024917,120]
[342333687,1731741202807,2000.0,0.00024917,120]
[342333688,1731741222990,200.0,0.00024917,120]
[342333689,1731741370108,1210.65,8.219e-05,2]
[342333691,1731741794602,500.0,0.00024877,120]
[342333692,1731741801912,2000.0,0.00024733,120]
[342333694,1731742039609,1150.11,8.219e-05,2]
[342333704,1731742232007,-503.86461167,9.087e-05,2]
[342333708,1731742232071,-1079.72538833,9.087e-05,2]
[342333709,1731742232080,-102.22363723,9.087e-05,2]
[342333710,1731742232092,-437.5141828,9.087e-05,2]
[342333711,1731742232104,-300.0,9.087e-05,2]
[342333712,1731742232116,-1160.26217997,9.087e-05,2]
[342333713,1731742232125,-239.88,9.14e-05,2]
[342333714,1731742232137,-200.0,9.147e-05,2]
[342333715,1731742232148,-961.15,9.163e-05,2]
[342333716,1731742232157,-452.13,9.231e-05,2]
[342333717,1731742232168,-969.61,9.271e-05,2]
[342333718,1731742232177,-250.01334619,9.457e-05,2]
[342333719,1731742232187,-1000.0,9.457e-05,2]
[342333720,1731742232196,-24.03243384,9.468e-05,2]
[342333721,1731742232218,-125.96756616,9.468e-05,2]
[342333722,1731742232228,-250.0,9.469e-05,2]
[342333723,1731742232236,-5872.67748086,9.469e-05,2]
[342333724,1731742232247,-17570.30251914,9.469e-05,2]
[342333725,1731742232256,-200.0,9.6e-05,2]
[342333726,1731742232266,-672.0,9.723e-05,2]
[342333727,1731742232276,-150.0,9.878e-05,2]
[342333728,1731742232285,-724.6,9.878e-05,2]
[342333729,1731742232294,-5836.4709,9.9e-05,2]
[342333731,1731742232303,-48490.4494,9.9e-05,2]
[342333733,1731742232312,-16215.2075,9.9e-05,2]
[342333735,1731742232321,-2119.1063,9.9e-05,2]
[342333737,1731742232330,-2500.0,9.9e-05,2]
[342333738,1731742232339,-737.1568,9.9e-05,2]
[342333739,1731742232349,-541.0,9.9e-05,2]
[342333740,1731742232359,-503.907,9.907e-05,2]
[342333741,1731742232368,-181.846,9.98e-05,2]
[342333742,1731742232378,-174.36352653,9.999e-05,2]
[342333743,1731742232388,-500.91542895,9.999e-05,2]
[342333744,1731742232398,-502.18445933,9.999e-05,2]
[342333745,1731742232407,-500.92336337,9.999e-05,2]
[342333746,1731742232417,-500.42490676,9.999e-05,2]
[342333747,1731742232426,-500.63690815,9.999e-05,2]
[342333749,1731742232436,-500.61726325,9.999e-05,2]
[342333750,1731742232445,-500.19332983,9.999e-05,2]
[342333751,1731742232459,-539.10176076,9.999e-05,2]
[342333753,1731742232468,-500.67345984,9.999e-05,2]
[342333755,1731742232477,-500.01573862,9.999e-05,2]
[342333756,1731742232486,-634.53839089,9.999e-05,2]
[342333757,1731742232495,-196.46376729,9.999e-05,2]
[342333758,1731742232504,-500.3228708,9.999e-05,2]
[342333759,1731742232513,-500.07802804,9.999e-05,2]
[342333760,1731742232523,-500.01797635,9.999e-05,2]
[342333761,1731742232532,-500.40612833,9.999e-05,2]
[342333762,1731742232543,-204.9447106,9.999e-05,2]
[342333763,1731742232552,-500.25560351,9.999e-05,2]
[342333764,1731742232561,-500.03096796,9.999e-05,2]
[342333765,1731742232571,-500.04473912,9.999e-05,2]
[342333766,1731742232580,-500.01636918,9.999e-05,2]
[342333767,1731742232590,-500.75180694,9.999e-05,2]
[342333768,1731742232600,-556.01,9.999e-05,5]
[342333769,1731742232609,-500.0,9.999e-05,2]
[342333770,1731742232618,-500.0,9.999e-05,2]
[342333771,1731742232628,-500.0,9.999e-05,2]
[342333772,1731742232638,-500.0,9.999e-05,2]
[342333773,1731742232648,-500.0,9.999e-05,2]
[342333774,1731742232657,-500.0,9.999e-05,2]
[342333775,1731742232666,-500.0,9.999e-05,2]
[342333776,1731742232675,-500.0,9.999e-05,2]
[342333777,1731742232684,-501.39594173,9.999e-05,2]
[342333778,1731742232693,-500.0,9.999e-05,2]
[342333779,1731742232706,-500.0,9.999e-05,2]
[342333780,1731742232715,-500.0,9.999e-05,2]
[342333781,1731742232725,-500.0,9.999e-05,2]
[342333782,1731742232735,-500.0,9.999e-05,2]
[342333783,1731742232744,-505.36285407,9.999e-05,2]
[342333784,1731742232753,-500.0,9.999e-05,2]
[342333785,1731742232762,-500.0,9.999e-05,2]
[342333786,1731742232772,-500.0,9.999e-05,2]
[342333787,1731742232781,-500.0,9.999e-05,2]
[342333788,1731742232790,-500.0,9.999e-05,2]
[342333789,1731742232799,-500.0,9.999e-05,2]
[342333790,1731742232808,-602.75373945,9.999e-05,2]
[342333791,1731742232817,-500.0,9.999e-05,2]
[342333792,1731742232826,-500.0,9.999e-05,2]
[342333793,1731742232836,-515.63436878,9.999e-05,2]
[342333794,1731742232844,-500.0,9.999e-05,2]
[342333795,1731742232854,-500.0,9.999e-05,2]
[342333796,1731742232863,-500.0,9.999e-05,2]
[342333797,1731742232872,-500.0,9.999e-05,2]
[342333798,1731742232882,-500.0,9.999e-05,2]
[342333799,1731742232891,-500.0,9.999e-05,2]
[342333800,1731742232900,-536.37735331,9.999e-05,2]
[342333801,1731742232910,-500.0,9.999e-05,2]
[342333802,1731742232917,-500.0,9.999e-05,2]
[342333803,1731742232926,-500.0,9.999e-05,2]
[342333804,1731742232936,-500.0,9.999e-05,2]
[342333805,1731742232945,-503.80018929,9.999e-05,2]
[342333806,1731742232956,-455.58503162,9.999e-05,2]
[342333807,1731742232965,-500.0,9.999e-05,2]
[342333808,1731742232974,-500.0,9.999e-05,2]
[342333809,1731742232983,-500.0,9.999e-05,2]
[342333810,1731742232992,-500.0,9.999e-05,2]
[342333811,1731742233001,-602.12735512,9.999e-05,2]
[342333812,1731742233012,-500.0,9.999e-05,2]
[342333813,1731742233021,-500.0,9.999e-05,2]
[342333814,1731742233031,-500.53144416,9.999e-05,2]
[342333815,1731742233040,-524.84888999,9.999e-05,2]
[342333816,1731742233051,-500.0,9.999e-05,2]
[342333817,1731742233062,-500.0,9.999e-05,2]
[342333818,1731742233070,-589.98199272,9.999e-05,2]
[342333819,1731742233078,-500.0,9.999e-05,2]
[342333820,1731742233088,-512.65587624,9.999e-05,2]
[342333821,1731742233098,-500.0,9.999e-05,2]
[342333822,1731742233108,-500.0,9.999e-05,2]
[342333823,1731742233118,-500.0,9.999e-05,2]
[342333824,1731742233127,-500.69069237,9.999e-05,2]
[342333825,1731742233138,-530.11836779,9.999e-05,2]
[342333826,1731742233147,-500.89094208,9.999e-05,2]
[342333827,1731742233156,-500.0,9.999e-05,2]
[342333828,1731742233164,-500.0,9.999e-05,2]
[342333829,1731742233173,-500.0,9.999e-05,2]
[342333830,1731742233183,-500.0,9.999e-05,2]
[342333831,1731742233192,-500.0,9.999e-05,2]
[342333832,1731742233201,-500.48554441,9.999e-05,2]
[342333833,1731742233215,-500.0,9.999e-05,2]
[342333834,1731742233225,-500.0,9.999e-05,2]
[342333835,1731742233235,-459.64382732,9.999e-05,2]
[342333836,1731742233244,-500.0,9.999e-05,2]
[342333837,1731742233254,-500.0,9.999e-05,2]
[342333838,1731742233263,-501.34330759,9.999e-05,2]
[342333839,1731742233273,-501.11569047,9.999e-05,2]
[342333840,1731742233282,-500.0,9.999e-05,2]
[342333841,1731742233291,-500.0,9.999e-05,2]
[342333842,1731742233301,-501.46381661,9.999e-05,2]
[342333843,1731742233311,-500.0,9.999e-05,2]
[342333844,1731742233320,-500.7909942,9.999e-05,2]
[342333845,1731742233329,-500.0,9.999e-05,2]
[342333846,1731742233339,-500.0,9.999e-05,2]
[342333847,1731742233348,-500.89167939,9.999e-05,2]
[342333848,1731742233357,-500.0,9.999e-05,2]
[342333849,1731742233367,-386.17309536,9.999e-05,2]
[342333850,1731742233376,-500.0,9.999e-05,2]
[342333851,1731742233386,-500.0,9.999e-05,2]
[342333852,1731742233395,-273.78313417,9.999e-05,2]
[342333853,1731742233404,-500.0,9.999e-05,2]
[342333854,1731742233414,-500.0,9.999e-05,2]
[342333855,1731742233422,-265.38745646,9.999e-05,2]
[342333856,1731742233431,-500.0,9.999e-05,2]
[342333857,1731742233440,-286.18086553,9.999e-05,2]
[342333858,1731742233450,-501.2563081,9.999e-05,2]
[342333859,1731742233464,-321.290014,9.999e-05,2]
[342333860,1731742233474,-517.96435624,9.999e-05,2]
[342333861,1731742233483,-500.0,9.999e-05,2]
[342333862,1731742233494,-500.0,9.999e-05,2]
[342333863,1731742233503,-354.79223409,9.999e-05,2]
[342333864,1731742233513,-554.43305926,9.999e-05,2]
[342333865,1731742233522,-554.89494521,9.999e-05,2]
[342333866,1731742233532,-500.0,9.999e-05,2]
[342333867,1731742233541,-494.09862417,9.999e-05,2]
[342333868,1731742233551,-580.79895544,9.999e-05,2]
[342333869,1731742233564,-501.74511672,9.999e-05,2]
[342333870,1731742233574,-500.0,9.999e-05,2]
[342333871,1731742233583,-164.56536959,9.999e-05,2]
[342333872,1731742233593,-503.00274245,9.999e-05,2]
[342333873,1731742233603,-500.0,9.999e-05,2]
[342333874,1731742233613,-500.0,9.999e-05,2]
[342333875,1731742233622,-501.2883893,9.999e-05,2]
[342333876,1731742233634,-502.6934488,9.999e-05,2]
[342333877,1731742233646,-500.0,9.999e-05,2]
[342333878,1731742233656,-421.28578872,9.999e-05,2]
[342333879,1731742233666,-500.0,9.999e-05,2]
[342333880,1731742233675,-521.44404115,9.999e-05,2]
[342333881,1731742233685,-500.0,9.999e-05,2]
[342333882,1731742233697,-176.71785729,9.999e-05,2]
[342333883,1731742233710,-500.0,9.999e-05,2]
[342333884,1731742233720,-500.0,9.999e-05,2]
[342333885,1731742233730,-540.68530271,9.999e-05,2]
[342333886,1731742233739,-524.02533071,9.999e-05,2]
[342333887,1731742233749,-500.0,9.999e-05,2]
[342333888,1731742233759,-629.03534206,9.999e-05,2]
[342333889,1731742233769,-501.20368765,9.999e-05,2]
[342333890,1731742233779,-500.0,9.999e-05,2]
[342333891,1731742233788,-342.76894796,9.999e-05,2]
[342333892,1731742233797,-500.22748923,9.999e-05,2]
[342333893,1731742233807,-500.0,9.999e-05,2]
[342333894,1731742233816,-500.0,9.999e-05,2]
[342333895,1731742233826,-500.0,9.999e-05,2]
[342333896,1731742233836,-500.0,9.999e-05,2]
[342333897,1731742233846,-500.0,9.999e-05,2]
[342333898,1731742233856,-500.0,9.999e-05,2]
[342333899,1731742233866,-500.0,9.999e-05,2]
[342333900,1731742233875,-500.0,9.999e-05,2]
[342333901,1731742233885,-1723.0,0.0001,2]
[342333902,1731742233894,-3727.44446141,0.0001,2]
[342333903,1731742233904,-1313.79315369,0.0001,2]
[342333904,1731742234428,-7395.25277829,0.0001,2]
[342333905,1731742234465,-29976.08592052,0.0001,2]
[342333995,1731742239931,-318.78144996,9.042e-05,2]
[342333998,1731742239943,-7678.59895704,9.042e-05,2]
[342334001,1731742239953,-269.99845252,0.0001,2]
[342334004,1731742239967,-549.69699999,0.0001,2]
[342334007,1731742239978,-312.02,0.0001,2]
[342334025,1731742240141,-420.28454749,0.0001,2]
[342334027,1731742240151,-37041.92565624,0.0001,2]
[342334029,1731742240163,-74038.90489505,0.0001,2]
[342334032,1731742240174,-22871.84582379,0.0001,2]
[342334034,1731742240186,-9141.71932419,0.0001,2]
[342334036,1731742240197,-6665.32962901,0.0001,2]
[342334338,1731742242972,-250.0,9.835e-05,2]
[342334340,1731742242981,-356.70325138,9.999e-05,2]
[342334342,1731742242991,-9873.30704686,0.0001,2]
[342334471,1731742245939,-500.0,9.999e-05,2]
[342334472,1731742245949,-500.0,9.999e-05,2]
[342334473,1731742245958,-500.0,9.999e-05,2]
[342334474,1731742245971,-857.75337381,0.0001,2]
[342334475,1731742245983,-7671.77760494,0.0001,2]
[342334476,1731742245994,-10401.00682633,0.0001,2]
[342334477,1731742246005,-13030.41950104,0.0001,2]
[342334478,1731742246015,-294325.67646431,0.0001,2]
[342334479,1731742246026,-1471.14569477,0.0001,2]
[342334480,1731742246115,-9271.14057484,0.0001,2]
[342334481,1731742246165,-3611.22523596,0.0001,2]
[342334483,1731742294679,200.0,0.00025,60]
[342334484,1731742397291,500.0,0.000249,120]
[342334485,1731742403922,2000.0,0.000249,120]
[342334486,1731742426402,350.000001,0.00025,60]
[342334487,1731742427310,200.0,0.000249,120]
[342334488,1731742547295,500.0,0.00012,60]
[342334489,1731742548899,-4000.0,8.654e-05,2]
[342334490,1731742576947,-300.0,8.538e-05,2]
[342334491,1731742577208,-500.0,8.611e-05,2]
[342334492,1731742577405,4400.0,0.00025,60]
[342334493,1731742617061,-220.65,8.538e-05,2]
[342334494,1731742617086,-1000.0,8.538e-05,2]
[342334495,1731742617109,-969.409293,8.611e-05,2]
[342334496,1731742617132,-300.0,8.653e-05,2]
[342334497,1731742617156,-5129.940707,8.654e-05,2]
[342334498,1731742629997,1639.6089334,0.00025,60]
[342334499,1731742756247,1165.14,8.219e-05,2]
[342334500,1731742757077,150.998,0.0002385,60]
[342334501,1731742775162,1129.3,8.485e-05,2]
[342334502,1731742778184,388.26,8.485e-05,2]
[342334503,1731742785955,500.0,0.00025,60]
[342334504,1731742806071,2843.49,8.485e-05,2]
[342334505,1731742855450,2100.43,8.485e-05,2]
[342334506,1731742886131,156.49,8.497e-05,2]
[342334507,1731742930958,156.49,8.238e-05,2]
[342334508,1731742930980,93.51,8.238e-05,2]
[342334509,1731742962596,200.0,8.181e-05,2]
[342334510,1731743011578,200.0,8.23e-05,2]
[342334511,1731743098449,775.27,8.205e-05,2]
[342334512,1731743104023,150.0,8.493e-05,2]
[342334513,1731743120483,156.49,8.236e-05,2]
[342334514,1731743120504,2866.23,8.236e-05,2]
[342334515,1731743148344,764.27,8.219e-05,2]
[342334516,1731743172716,156.49,8.219e-05,2]
[342334517,1731743172744,93.51,8.219e-05,2]
[342334518,1731743186683,250.0,8.244e-05,2]
[342334519,1731743187972,160.79,8.262e-05,2]
[342334520,1731743197087,1713.88,8.208e-05,2]
[342334521,1731743200262,623.06,8.273e-05,2]
[342334522,1731743278827,156.49,8.229e-05,2]
[342334523,1731743278849,1965.61,8.229e-05,2]
[342334524,1731743278872,20000.0,8.229e-05,2]
[342334525,1731743278892,1594.46,8.229e-05,2]
[342334526,1731743279791,6404.59,8.314e-05,2]
[342334539,1731743357182,-156.49,8.501e-05,2]
[342334540,1731743357205,-156.49,8.506e-05,2]